Cogmind - Beta 14 @@@ ROGUE MODE // 2025.05.01 @ 10:49:09 Player: CONM Result: Destroyed by G-47 Trooper with Particle Gun Performance ------------- Evolutions (2) 1000 Regions Visited (4) 800 Robots Destroyed (44) 220 Value Destroyed (1036) 1036 Prototype IDs (0) 0 Alien Tech Used (0) 0 Bonus (0) 0 TOTAL SCORE: 3056 Bonus ------- None Cogmind --------- Core Integrity 0/550 Matter 244/300 Energy 56/100 System Corruption 0% Temperature Cool (9) Movement Hovering (120) Ox1 Location -8/Materials Parts ------- > --- POWER (1) -------- (None) > --- PROPULSION (4) --- Airjet > --- UTILITY (4) ------ Medium Storage Unit Improved Signal Interpreter Hacking Suite > --- WEAPON (2) ------- Axe > --- INVENTORY (10) --- Wheel Large Battery (200) Actuator Array Improved Propulsion Shielding Assault Rifle Flail Blade Saw Peak State ------------ > --- POWER ------------ Light Nuclear Core > --- PROPULSION ------- Airjet Airjet Airjet Airjet > --- UTILITY ---------- Medium Storage Unit Improved Signal Interpreter Improved Light Armor Plating Hacking Suite > --- WEAPON ----------- Autogun Axe > --- INVENTORY -------- Wheel Airjet Large Battery Improved Propulsion Shielding Assault Rifle Rocket Launcher Flail [Rating: 31] Favorites ----------- Power Ion Engine Engine Ion Engine Power Core Light Nuclear Core Propulsion Light Treads Treads Light Treads Wheel Wheel Hover Unit Airjet Utility Seismic Detector Device Seismic Detector Storage Large Storage Unit Processor Improved Signal Interpreter Hackware Hacking Suite Protection Light Armor Plating Weapon Assault Rifle Ballistic Gun Assault Rifle Launcher Rocket Launcher Impact Weapon Flail Slashing Weapon Axe Build | -11 -10 -10 -9 -8 ------- Run | Yrd Mat Min Mat Mat Slots Evolved 4 | . . . 2 2 Power . | . . . . . Propulsion 2 | . . . 1 1 Utility 2 | . . . 1 1 Weapon . | . . . . . Parts Attached 51 | 8 5 . 5 33 Power 4 | 1 . . . 3 Engine 3 | 1 . . . 2 Core 1 | . . . . 1 Reactor . | . . . . . Propulsion 18 | 2 2 . 1 13 Treads 5 | 2 2 . 1 . Leg . | . . . . . Wheel 5 | . . . . 5 Hover 8 | . . . . 8 Flight . | . . . . . Utility 12 | 3 1 . 1 7 Device 4 | 2 . . . 2 Storage 3 | 1 1 . . 1 Processor 2 | . . . . 2 Hackware 1 | . . . . 1 Protection 2 | . . . 1 1 Artifact . | . . . . . Weapon 17 | 2 2 . 3 10 Energy Gun . | . . . . . Energy Cannon . | . . . . . Ballistic Gun 12 | 2 2 . 3 5 Ballistic Cannon . | . . . . . Launcher 1 | . . . . 1 Special Weapon . | . . . . . Impact Weapon 2 | . . . . 2 Slashing Weapon 2 | . . . . 2 Piercing Weapon . | . . . . . Special Melee Weapon . | . . . . . Unidentified Prototypes . | . . . . . Parts Lost 22 | . . . 3 19 Power 4 | . . . 1 3 Propulsion 10 | . . . 1 9 Utility 5 | . . . 1 4 Weapon 3 | . . . . 3 Highest Loss Streak 7 | . . . 3 7 To Critical Strikes . | . . . . . Average Slot Usage (%) 87 | . 98 100 92 70 Engine 8 | . 14 14 8 1 Core 1 | . . . . 3 Treads 20 | . 27 28 30 . Wheel 3 | . . . . 10 Hover 2 | . . . . 9 Device 8 | . 14 14 11 1 Storage 11 | . 14 14 11 9 Processor 1 | . . . . 3 Hackware 2 | . . . . 8 Protection 5 | . . . 8 5 Ballistic Gun 20 | . 27 28 22 12 Peak Build Rating 31 | 9 8 9 14 31 Average Rating 12 | 6 7 8 12 18 On Entrance 7 | . 7 8 9 11 Naked Turns . | . . . . . Heaviest Build 35 | 14 30 30 35 24 Greatest Support 60 | 40 40 40 60 32 Greatest Overweight (x) 9 | 1 9 . . 7 Average Overweight (x) . | . . . . . Largest Inventory Capacity 15 | 8 15 15 15 15 Average Capacity 13 | 7 14 15 15 10 Most Carried 15 | 5 13 15 15 15 Average Carried 11 | 2 11 13 14 8 Final Capacity 15 | 8 15 15 15 10 Final Carried 15 | 5 12 15 15 7 Class Distribution -------------------- 85% | Mutant 14% | Scavenger-Mutant Dominant Class ---------------- Mutant | -10/Materials Mutant | -10/Mines Mutant | -9/Materials Scavenger-Mutant | -8/Materials Resources | -11 -10 -10 -9 -8 ----------- Run | Yrd Mat Min Mat Mat Matter Collected 1285 | 303 164 21 395 402 Remotely . | . . . . . Salvage Created 1551 | 100 222 17 719 493 Parts 107 | 10 16 3 45 33 Haulers Intercepted 3 | . . . 2 1 Recyclers Shooed 2 | . 1 . . 1 Parts Field Recycled . | . . . . . Retrieved Matter . | . . . . . Parts Self-Destructed . | . . . . . Prevented . | . . . . . Kills | -11 -10 -10 -9 -8 ------- Run | Yrd Mat Min Mat Mat Combat Hostiles Destroyed 29 | . 9 . 12 8 Melee 2 | . . . . 2 Guns 25 | . 9 . 12 4 AOE 1 | . . . . 1 Classes Destroyed 13 | 2 2 1 6 2 Worker 3 | . . 1 1 1 Builder 2 | . . . . 2 Tunneler 2 | 2 . . . . Hauler 3 | . . . 2 1 Recycler 2 | 1 . . . 1 Mechanic 1 | . . . 1 . Operator 1 | . . . 1 . Watcher 1 | . . . 1 . Swarmer 6 | . 6 . . . Cutter 2 | . . . . 2 Grunt 11 | . 3 . 6 2 Brawler 2 | . . . 2 . Sentry 8 | . . . 4 4 Best Kill Streak 4 | 2 4 1 3 4 Combat Bots Only 4 | . 4 . 3 2 Max Kills in Single Turn 2 | 1 1 1 2 1 Gunslinging . | . . . . . Exploded 1 | . . . . 1 Melee 1 | . . . . 1 Uniques/NPCs Destroyed . | . . . . . Combat | -11 -10 -10 -9 -8 -------- Run | Yrd Mat Min Mat Mat Hostile Shots Fired 254 | . 38 . 65 151 Missed 65 | . 8 . 17 40 Damage Taken 2920 | . 289 . 724 1907 Core 772 | . 66 . 150 556 Absorbed by Shields . | . . . . . Core Remaining (%) 78 | 100 . 73 62 . Volleys Fired 105 | 6 23 1 44 31 Largest 2 | 2 2 2 2 2 Hottest 46 | 40 40 40 46 46 Shots Fired 204 | 12 46 2 87 57 Gun 201 | 12 46 2 87 54 Cannon . | . . . . . Launcher 3 | . . . . 3 Special . | . . . . . Kinetic 201 | 12 46 2 87 54 Thermal . | . . . . . Explosive 3 | . . . . 3 Electromagnetic . | . . . . . Robot Hit Streak 21 | 2 8 1 21 20 Robot Miss Streak 3 | 3 2 3 3 1 Penetration Max . | . . . . . Secondary Targets 1 | . 1 . . . Max Gunslinging Chain 1 | . 1 . . . Shots Hit Robots 167 | 6 28 1 69 63 Core Hits 60 | 5 13 1 25 16 Critical Kills . | . . . . . Critical Parts Destroyed 2 | . . . . 2 Critical Strikes 3 | . . . . 3 Smash 2 | . . . . 2 Sever 1 | . . . . 1 Melee Attacks 38 | . . . . 38 Impact 13 | . . . . 13 Slashing 25 | . . . . 25 Piercing . | . . . . . Sneak Attacks 3 | . . . . 3 Combat Hostiles . | . . . . . Follow-up Attacks . | . . . . . Damage Inflicted 3152 | 87 354 13 1199 1499 Guns 2185 | 87 354 13 1012 719 Cannons . | . . . . . Explosions 325 | . . . 187 138 Melee 642 | . . . . 642 Ramming . | . . . . . Kinetic 2185 | 87 354 13 1012 719 Thermal . | . . . . . Explosive 325 | . . . 187 138 Electromagnetic . | . . . . . Impact 148 | . . . . 148 Slashing 494 | . . . . 494 Piercing . | . . . . . Highest Corruption 4 | . . . 4 . Average Corruption 3 | . . . 3 . Corruption Purged . | . . . . . Corruption Blocked . | . . . . . Effects 6 | . . . 6 . Message Errors 2 | . . . 2 . Matter Fused 2 | . . . 2 . Data Loss (minor) 1 | . . . 1 . Weapon Failures 1 | . . . 1 . Overload Shots . | . . . . . Overflow Damage 169 | . . . 38 131 Projectiles . | . . . . . Explosions 60 | . . . 38 22 Melee 109 | . . . . 109 Knockbacks . | . . . . . Impact . | . . . . . Kinetic . | . . . . . Secondary . | . . . . . Self-Inflicted Damage 104 | . . . . 104 Shots 3 | . . . . 3 Rammed . | . . . . . Targets Rammed . | . . . . . Kicked . | . . . . . Crushed . | . . . . . Highest Temperature 22 | . . . 18 22 Average Temperature 6 | . . . 5 8 Received Heat Transfer 984 | . 84 . 228 672 Siege Activations . | . . . . . Robots Corrupted 1 | . . . . 1 Combat Hostiles 1 | . . . . 1 Parts Fried . | . . . . . Impact Corruptions 2 | . . . . 2 Robots Melted . | . . . . . Combat Hostiles . | . . . . . Parts Melted . | . . . . . Heat Transferred . | . . . . . Parts Sabotaged . | . . . . . Parts Stolen . | . . . . . Parts Stripped . | . . . . . Power Chain Reactions . | . . . . . Alert | -11 -10 -10 -9 -8 ------- Run | Yrd Mat Min Mat Mat Peak Influence 275 | 15 185 24 235 275 Initial 74 | . 9 19 9 74 Average 95 | 5 87 23 111 114 Maximum Alert Level 1 | . . . 1 1 Low Security (%) 95 | 100 100 100 94 90 Level 1 4 | . . . 5 9 Level 2 . | . . . . . Level 3 . | . . . . . Level 4 . | . . . . . Level 5 . | . . . . . High Security . | . . . . . Max Security . | . . . . . Squads Dispatched 9 | . 1 . 3 5 Investigation . | . . . . . Extermination . | . . . . . Reinforcement 6 | . 1 . 3 2 Assault . | . . . . . Garrison 3 | . . . . 3 Intercept . | . . . . . Searches Triggered . | . . . . . Construction Impeded . | . . . . . Haulers Reinforced . | . . . . . Active Scanning Responses . | . . . . . Cargo Convoy Interrupts . | . . . . . Stealth | -11 -10 -10 -9 -8 --------- Run | Yrd Mat Min Mat Mat Distress Signals 5 | . . . 2 3 Communications Jammed . | . . . . . Distress Signals . | . . . . . Times Spotted 64 | . 9 . 24 31 Peak Tracking Total 16 | . 4 . 5 16 Tactical Retreats 4 | . . . 2 2 Traps | -11 -10 -10 -9 -8 ------- Run | Yrd Mat Min Mat Mat Traps Triggered 3 | . 2 . 1 . Indirectly . | . . . . . Trap Hack Attempts . | . . . . . Triggered . | . . . . . Disarmed . | . . . . . Reprogrammed . | . . . . . Reused . | . . . . . Traps Extracted . | . . . . . Installed . | . . . . . Triggered . | . . . . . Machines | -11 -10 -10 -9 -8 ---------- Run | Yrd Mat Min Mat Mat Machines Disabled 2 | . . . 2 . Max in Single Turn 2 | . . . 2 . Machines Repaired . | . . . . . Machines Dismantled . | . . . . . Machines Sabotaged . | . . . . . Overloaded Fab Kills . | . . . . . Hacking | -11 -10 -10 -9 -8 --------- Run | Yrd Mat Min Mat Mat Machines Accessed 14 | . 4 1 3 6 Terminals 11 | . 2 . 3 6 Fabricators . | . . . . . Repair Stations . | . . . . . Recycling Units 2 | . 2 . . . Scanalyzers . | . . . . . Garrison Access . | . . . . . Total Hacks 34 | . 7 1 9 17 Successful 19 | . 1 1 4 13 Failed 15 | . 6 . 5 4 Catastrophic . | . . . . . Database Lockouts . | . . . . . Manual 22 | . 1 . 8 13 Terminals 31 | . 5 . 9 17 Fabricators . | . . . . . Repair Stations . | . . . . . Recycling Units 2 | . 2 . . . Scanalyzers . | . . . . . Garrison Access . | . . . . . Terminal Hacks 8 | . . 1 2 5 Part Schematic 1 | . . . 1 . Open Door 1 | . . 1 . . Level Access Points 1 | . . . . 1 Branch Access Points 1 | . . . . 1 Hauler Manifests 2 | . . . 1 1 Registered Components 1 | . . . . 1 Zone Layout 1 | . . . . 1 Fabricator Hacks . | . . . . . Repair Station Hacks . | . . . . . Recycling Unit Hacks 1 | . 1 . . . Report Inventory 1 | . 1 . . . Scanalyzer . | . . . . . Garrison Access Hacks . | . . . . . Unauthorized Hacks 10 | . . . 2 8 Terminals 10 | . . . 2 8 Track 2 | . . . . 2 Botnet 6 | . . . 1 5 Operators 2 | . . . 1 1 Fabricators . | . . . . . Repair Stations . | . . . . . Recycling Units . | . . . . . Scanalyzers . | . . . . . Garrison Access . | . . . . . Data Cores Recovered . | . . . . . Used . | . . . . . Hacking Detections 11 | . 3 . 2 6 Full Trace Events . | . . . . . Feedback Events . | . . . . . Feedback Blocked . | . . . . . Robot Schematics Acquired . | . . . . . Robots Built . | . . . . . Authchips . | . . . . . Time . | . . . . . Total Robot Build Rating . | . . . . . Part Schematics Acquired 1 | . . . 1 . Parts Built . | . . . . . Authchips . | . . . . . Time . | . . . . . Total Part Build Rating . | . . . . . Parts Repaired . | . . . . . Time . | . . . . . Parts Recycled . | . . . . . Recycled Matter . | . . . . . Retrieved Matter . | . . . . . Retrieved Components . | . . . . . Parts Scanalyzed . | . . . . . Part Schematics Acquired . | . . . . . Parts Damaged . | . . . . . Bothacking | -11 -10 -10 -9 -8 ------------ Run | Yrd Mat Min Mat Mat Used RIF Installer . | . . . . . Robots Hacked . | . . . . . Non-combat . | . . . . . Combat . | . . . . . Robot Hacks Applied . | . . . . . Relay Couplers Released . | . . . . . Fabnet Peak Effective % . | . . . . . Robots Rewired . | . . . . . Allies Hacked . | . . . . . Hacks Repelled . | . . . . . Allies | -11 -10 -10 -9 -8 -------- Run | Yrd Mat Min Mat Mat Total Allies . | . . . . . Largest Group . | . . . . . Highest-Rated Group . | . . . . . Highest-Rated Ally . | . . . . . Total Orders . | . . . . . Ally Attacks . | . . . . . Total Damage . | . . . . . Kills . | . . . . . Allies Corrupted . | . . . . . Allies Melted . | . . . . . Intel | -11 -10 -10 -9 -8 ------- Run | Yrd Mat Min Mat Mat Robot Analysis Total . | . . . . . Derelict Logs Recovered 1 | . . 1 . . Drone Launches . | . . . . . Drone Recoveries . | . . . . . Exploration | -11 -10 -10 -9 -8 ------------- Run | Yrd Mat Min Mat Mat Turns Passed 2566 | 167 516 132 1037 714 Spaces Moved 1544 | 82 266 79 529 588 Core 25 | 5 1 . . 19 Treads 950 | 77 265 79 529 . Legs . | . . . . . Wheels 276 | . . . . 276 Hover 293 | . . . . 293 Flight . | . . . . . Fastest Speed 48 | 50 160 160 160 48 Average Speed 128 | 155 162 160 160 77 Slowest Speed 500 | 160 500 160 160 400 Overloaded Moves . | . . . . . Propulsion Burnouts . | . . . . . Robots Hopped . | . . . . . Cave-ins Triggered . | . . . . . Exploration Rate (%) 30 | 4 37 25 38 49 Regions Visited 4 Branch Regions 1 Pre-discovered Areas 1 | . . 1 . . Known Exits Taken . | . . . . . Unknown Exits Taken 4 | 1 1 1 1 . Scrap Searched . | . . . . . Spaces Dug 13 | . . . . 13 Terrain Destroyed 36 | . . . . 36 Melee 13 | . . . . 13 Projectile . | . . . . . AOE 23 | . . . . 23 Terrain Rammed . | . . . . . Walls Destroyed . | . . . . . Machines Disabled . | . . . . . Actions | -11 -10 -10 -9 -8 --------- Run | Yrd Mat Min Mat Mat Total 1873 | 107 302 83 655 726 Wait 77 | 7 1 2 49 18 Move 1540 | 81 265 78 528 588 Hop . | . . . . . Pick Up 35 | 5 7 2 13 8 Fast Attach 25 | 7 2 . 4 12 Attach 16 | . 1 . . 15 Detach 3 | . . . . 3 Swap 10 | 1 2 . 1 6 Drop 24 | . 1 . 16 7 Fire 105 | 6 23 1 44 31 Melee 38 | . . . . 38 Ram . | . . . . . Kick . | . . . . . Crush . | . . . . . Escape Stasis . | . . . . . Rewire . | . . . . . Trap . | . . . . . Miscellaneous . | . . . . . Route ------- -11/Scrapyard -10/Materials (discovered 2 exits: *Mat / *Min) -10/Mines -9/Materials -8/Materials (discovered 3 exits: Fac x3) History --------- Turn | Location | Event 2 | -11/Scrapyard | Met Revision 17 16 | -11/Scrapyard | Discovered new exit (range 13) 168 | -11/Scrapyard | Entered Materials 300 | -10/Materials | Build established: Mutant 468 | -10/Materials | Discovered new exit (range 8) 551 | -10/Materials | Discovered new exit (range 10) 684 | -10/Materials | Entered Mines 732 | -10/Mines | Learned location of Recycling (-7) 749 | -10/Mines | Discovered new exit (range 9) 771 | -10/Mines | Found the Drone Emporium 778 | -10/Mines | Found Prototype Device 816 | -10/Mines | Entered Materials 816 | -9/Materials | Evolved 2 slots: Propulsion x1, Utility x1 1692 | -9/Materials | Discovered new exit (range 8) 1697 | -9/Materials | Lost 3 parts (1p1n1u) 1853 | -9/Materials | Entered another Materials area 1853 | -8/Materials | Evolved 2 slots: Propulsion x1, Utility x1 1970 | -8/Materials | Lost 6 parts (1p3n2u) 2264 | -8/Materials | Garrison activated, responded to threat 2265 | -8/Materials | Lost 3 parts (1p2n) 2266 | -8/Materials | Core integrity fell below 50% 2380 | -8/Materials | Identified exit to Factory 2541 | -8/Materials | Core integrity fell below 20% 2567 | -8/Materials | Destroyed by G-47 Trooper with Particle Gun Last Messages --------------- 02510_ Destroyed Rocket Launcher. 02510_ U-05 Engineer lays Concrete. 02511_ U-05 Engineer builds a Wall. 02513_ C-17 Slicer destroyed. 02515_ ALERT: Hostiles spotted, dispatching reinforcements to Terminal M003. 02519_ Slug penetrates Wall. 02522_ W-25 Informer sends out distress signal. 02524_ Sneak attack on R-06 Scavenger. 02524_ Destroyed Com. Wheel. 02524_ R-06 Scavenger destroyed. 02528_ Slug penetrates Wall. 02530_ Autogun destroyed. 02531_ Slug penetrates Wall. 02533_ Lgt. Nuclear Core destroyed. 02535_ Airjet destroyed. 02539_ Slug penetrates Wall. 02559_ W-25 Informer sends out distress signal. 02563_ Weight Redist. System destroyed. 02563_ Slug penetrates Wall. Map ----- +----------------------------------------------------+ | ?????????????????????????????????????????????????< | | ?????????????????????????????????????????????????? | | ?????????????????????????????????????????????????? | | ?????????????????????????????????????????????????? | | ?????????????????????????????????????????????????? | | ?????????????????????????????????????????????????? | | ?????????????????????????????????????????????????? | | ?????????????????????????????????????????????????? | | ?????????????????????????????????????????????????? | | ?????????????????????????????????????????????????? | | ?????????????????????????????????????????????????? | | ?????????????????????????????????????????????????? | | ?????????????????????????????????????????????????? | | ?????????????????????????????????????????????????? | | ?????????????????????????????????????????????????? | | ?????????????????????????????????????????????????? | | ?????????????????????????????????????????????????? | | ??????????????????????????????????? ?????????????? | | ??????????????????????????????????? #????????????? | | ??????????????????????????????????? #????????????? | | ??????????????????????????????????? #????????????? | | ??????????????????????????????????? #????????????? | | ??????????????????????????????????# #????????????? | | ????????????????????????###???????# ##???????????? | | ????????????????????????#;######### ????????????? | | ????????????????????????#@! ## #????????????? | | ????????????????????????# ## ####?????????? | | ????????????????????????#l [# #?????????? | | ???????????????????????## # #?????????? | | ???????????????????????#; gh #?????????? | | ???????????????????????## #YghY #?????????? | | ????????????????????????# ! # #?????????? | | ???????????????????????## ## ##?????????? | | ???????????????????????#; ## #??????????? | | ???????????